[Event "Ceske Budejovice IM 2022"]
[Site "Ceske Budejovice"]
[Date "2022.07.04"]
[Round "4.4"]
[White "Nagy, Ladislav"]
[Black "Finek, Vaclav"]
[Result "0-1"]
[ECO "B27"]
[WhiteElo "2209"]
[BlackElo "2393"]
[Annotator "TA"]
[PlyCount "76"]
[EventDate "2022.07.01"]
[EventType "tourn"]
[EventCountry "CZE"]
[SourceTitle "playchess.com"]
[Source "ChessBase"]
[SourceQuality "1"]
[TimeControl "40/5400+30:1800+30"]

{[%evp 20,76,0,0,0,0,0,0,0,-31,-30,-35,-29,-25,-29,-34,-32,-85,-88,-123,-122,-110,-109,-233,-220,-220,-201,-319,-314,-331,-328,-350,-345,-368,-282,-281,-288,-288,-274,-281,-283,-379,-358,-392,-392,-386,-389,-410,-386,-401,-385,-500,-496,-497,-497,-597,-570,-722,-710]} 1. e4 {[%emt 0:00:05]} c5 {[%emt 0:00:04]} 2. Nf3 {[%emt 0:00:15]} g6 {[%emt 0:00:05]} 3. d4 {[%emt 0:00:35]} cxd4 {[%emt 0:00:04]} 4. Nxd4 {[%emt 0:00:08]} Bg7 {[%emt 0:00:05]} 5. Be3 {[%emt 0:01:37]} Nc6 {[%emt 0:00:09]} 6. Nc3 {[%emt 0:00:34]} Nf6 {[%emt 0:00:16]} 7. Nxc6 {[%emt 0:00:38]} bxc6 {[%emt 0:00:05]} 8. e5 {[%emt 0:00:43]} Ng8 {[%emt 0:00:05]} 9. Bd4 {[%emt 0:00:42]} f6 {[%emt 0:11:16]} 10. f4 {[%emt 0:00:46]} Qa5 {[%emt 0:06:10]} 11. Qd2 {[%emt 0:00:49] is recently more successful than 11.Qe2.} fxe5 {[%emt 0:17:22] B34: Sicilian: Accelerated Dragon with 5 Nc3: sidelines.} 12. fxe5 {[%emt 0:00:21]} c5 {[%emt 0:00:19]} 13. Bf2 {[%emt 0:02:33] [#] aiming for Bc4.} Rb8 {[%emt 0:09:33] The position is equal.} 14. Bc4 {[%emt 0:15:15] And now 0-0 would win.} (14. Nd5 $5 {[%cal Rd2a5]} Qxd2+ 15. Kxd2 $11) 14... Rxb2 {[%emt 0:15:29]} 15. Bg3 {[%emt 0:06:30] Threatens to win with 0-0.} Ba6 {[%emt 0:06:16]} (15... Bh6 16. Qd3 $16) 16. Bxa6 {[%emt 0:26:25]} Qxa6 {[%emt 0:00:08]} 17. Rd1 {[%emt 0:05:11]} Rb7 {[%emt 0:07:16] [#] Active counter play!} 18. Bf4 $146 {[%emt 0:06:42] Inhibits Nh6.} ({Better is} 18. Ne4 $15 Qc4 19. Qd3 Qxd3 20. cxd3) ({Predecessor:} 18. Ne2 Nh6 19. O-O Nf5 20. Bf2 Bxe5 21. g4 Nd4 22. Nxd4 cxd4 23. Qh6 Qe2 24. h3 {0-1 (55) Hakobyan,E (2028)-Rostomyan,M (2067) Yerevan 2021}) 18... Qc4 $17 {[%emt 0:02:52][%cal Og8h6]} 19. Ne2 {[%emt 0:07:23]} e6 {[%emt 0:05:40]} 20. O-O {[%emt 0:06:16] [#] Bg5 is the strong threat.} Ne7 {[%emt 0:01:27]} 21. Rb1 {[%emt 0:03:33] This move loses the game for White.} (21. Nc1 $17 O-O 22. Nb3) 21... Rxb1 $19 {[%emt 0:03:39]} 22. Rxb1 {[%emt 0:00:01]} O-O {[%emt 0:04:54]} ({Weaker is} 22... Qxa2 23. Nc3 Qa6 24. Ne4 $17) 23. h3 {[%emt 0:08:01]} (23. Qd3 $142 Qxd3 24. cxd3) 23... Nd5 {[%emt 0:00:18][%cal Rd5f4]} ({But not} 23... Qxa2 $2 24. Rb7 Nd5 25. Rxd7 $19) 24. Bg3 {[%emt 0:00:51]} Qxa2 {[%emt 0:01:09]} 25. Rd1 {[%emt 0:01:14]} Qc4 {[%emt 0:01:47] Prevents Nc3.} 26. Ra1 {[%emt 0:02:09]} a6 {[%emt 0:01:42][%cal Og7h6]} 27. Qd3 {[%emt 0:01:55]} Qxd3 {[%emt 0:00:23]} 28. cxd3 {[%emt 0:00:02]} Ra8 {[%emt 0:00:25]} 29. Ra5 {[%emt 0:00:44]} Bf8 {[%emt 0:00:05]} 30. Bf2 {[%emt 0:00:38]} Nb4 {[%emt 0:00:29]} 31. d4 {[%emt 0:02:10]} Nc6 {[%emt 0:00:58]} 32. Ra4 {[%emt 0:00:17]} cxd4 {[%emt 0:00:05]} 33. Nxd4 {[%emt 0:00:59]} Nxe5 {[%emt 0:00:13]} 34. Nb5 {[%emt 0:00:11]} Nd3 {[%emt 0:00:36] Strongly threatening ...Rc8.} 35. Nc7 {[%emt 0:00:56]} Rc8 {[%emt 0:00:44] Black is clearly winning.} 36. Bg3 {[%emt 0:00:35]} Nc5 {[%emt 0:00:38]} 37. Ra1 {[%emt 0:00:25]} d6 {[%emt 0:00:20]} 38. Nxa6 {[%emt 0:00:19]} Ra8 {[%emt 0:00:05] Weighted Error Value: White=0.39/Black=0.04 (flawless)} 0-1

[Event "Ceske Budejovice IM 2022"]
[Site "Ceske Budejovice"]
[Date "2022.07.04"]
[Round "4.5"]
[White "Mirzoev, Azer"]
[Black "Lajbl, Jan"]
[Result "1/2-1/2"]
[ECO "D02"]
[WhiteElo "2424"]
[BlackElo "2212"]
[Annotator "TA"]
[PlyCount "118"]
[EventDate "2022.07.01"]
[EventType "tourn"]
[EventCountry "CZE"]
[SourceTitle "playchess.com"]
[Source "ChessBase"]
[SourceQuality "1"]
[TimeControl "40/5400+30:1800+30"]

{[%evp 12,118,29,29,43,27,19,29,35,32,33,12,17,20,38,12,11,0,10,0,0,0,32,25,50,41,45,27,53,41,43,37,40,37,38,31,38,36,41,47,58,29,51,46,65,39,50,43,45,42,64,43,44,43,76,76,80,40,59,47,54,40,50,37,52,40,35,33,40,55,43,64,62,51,98,93,118,22,22,22,72,71,73,77,78,76,80,70,48,0,0,0,0,0,0,0,0,0,0,0,0,0,0,0,0,0,0,0,0]} 1. d4 {[%emt 0:00:04]} d5 {[%emt 0:00:01]} 2. Nf3 {[%emt 0:00:08]} c5 {[%emt 0:00:20]} 3. dxc5 {[%emt 0:00:31]} e6 {[%emt 0:00:14]} 4. e4 {[%emt 0:00:30]} Bxc5 {[%emt 0:01:19]} 5. exd5 {[%emt 0:00:06]} exd5 {[%emt 0:00:28]} 6. Bd3 {[%emt 0:00:30]} Ne7 {[%emt 0:00:42]} 7. O-O {[%emt 0:00:17]} h6 {[%emt 0:01:50] C01: French: Exchange Variation.} 8. Nc3 {[%emt 0:01:07]} O-O {[%emt 0:02:02]} 9. h3 {[%emt 0:06:35]} Nbc6 {[%emt 0:01:25] White has an edge.} 10. a3 {[%emt 0:00:07]} a6 {[%emt 0:05:59]} 11. Bf4 {[%emt 0:00:29]} Be6 {[%emt 0:12:17] [#]} 12. Re1 $146 {[%emt 0:06:39]} ({Predecessor:} 12. Qd2 Qd7 13. Rae1 Rad8 14. g4 Bxg4 15. hxg4 Qxg4+ 16. Kh2 Qxf3 17. Bg3 Qg4 18. f4 {0-1 (36) Kaiser,D (1801)-Braun,T (2162) Kelheim 2012}) 12... Qd7 {[%emt 0:09:42]} ({Resist} 12... Qb6 13. Qd2 $16) 13. Bf1 {[%emt 0:15:05]} Rad8 {[%emt 0:04:13]} 14. Ne2 {[%emt 0:03:55]} Nf5 {[%emt 0:10:10][%cal Be7f5,Bf5d6,Bd6e4][%mdl 32]} 15. Ne5 {[%emt 0:11:16]} Nxe5 {[%emt 0:13:26]} 16. Bxe5 {[%emt 0:00:17]} Bd6 {[%emt 0:05:39]} 17. Nd4 {[%emt 0:05:39]} Bxe5 {[%emt 0:07:59]} 18. Rxe5 {[%emt 0:00:11]} Nd6 {[%emt 0:02:10]} 19. Re1 {[%emt 0:00:42]} Ne4 {[%emt 0:04:17]} 20. c3 {[%emt 0:00:23]} Bf5 {[%emt 0:00:57]} 21. f3 {[%emt 0:08:41] g4 is the strong threat.} Nf6 {[%emt 0:02:46]} 22. Qd2 {[%emt 0:00:10]} Rfe8 {[%emt 0:00:39]} 23. Qf4 {[%emt 0:00:44]} (23. Kf2 {looks sharper.} Bg6 24. Qf4 Nh5 25. Qh2) 23... Bg6 {[%emt 0:00:27]} 24. g4 {[%emt 0:00:15]} (24. Kf2 {keeps more tension.} Rc8 25. Rxe8+ Nxe8 26. Re1) 24... Rxe1 {[%emt 0:01:36]} 25. Rxe1 {[%emt 0:02:15]} Re8 {[%emt 0:00:34]} 26. Rd1 {[%emt 0:03:43]} Qa4 {[%emt 0:00:45]} 27. Rd2 {[%emt 0:02:49]} Qd7 {[%emt 0:02:30]} 28. Kf2 {[%emt 0:06:35]} Qd8 {[%emt 0:01:59]} 29. Ne2 {[%emt 0:05:06]} Qe7 {[%emt 0:01:21]} 30. Kg2 {[%emt 0:00:32]} Bb1 {[%emt 0:02:32]} 31. Qd4 {[%emt 0:02:02]} Qc7 {[%emt 0:02:38]} 32. Ng3 {[%emt 0:03:04]} Bg6 {[%emt 0:01:27]} 33. h4 {[%emt 0:01:05][%cal Bh3h4,Bh4h5][%mdl 32]} Re5 {[%emt 0:01:10]} 34. Qf4 {[%emt 0:04:31]} Qe7 {[%emt 0:00:27]} 35. h5 {[%emt 0:02:08]} Bb1 {[%emt 0:00:22]} 36. Kf2 {[%emt 0:01:44]} Nh7 {[%emt 0:01:05]} 37. Rd1 {[%emt 0:04:50]} Bc2 {[%emt 0:00:03]} 38. Rc1 {[%emt 0:00:20]} Bb3 {[%emt 0:00:23]} 39. Nf5 {[%emt 0:01:17]} Qc7 {[%emt 0:00:24][%cal Oe5e2]} 40. Kg3 {[%emt 0:01:00] Active counter play!} Ng5 {[%emt 0:00:31]} 41. Re1 {[%emt 0:32:36]} f6 {[%emt 0:04:50] White must now prevent ...Ne6.} 42. Rxe5 {[%emt 0:00:00]} fxe5 {[%emt 0:07:59] [#]} (42... Qxe5 $14 43. Qxe5 fxe5) 43. Qb4 $1 $16 {[%emt 0:00:00]} Bd1 {[%emt 0:03:44] [#]} 44. Qd6 {[%emt 0:00:00]} (44. Bg2 $1 $16) 44... Qxd6 $11 {[%emt 0:02:41]} 45. Nxd6 {[%emt 0:00:00]} Bxf3 {[%emt 0:02:00]} (45... b5 $11) 46. Nxb7 {[%emt 0:00:00][%mdl 4096] Endgame Hoping for Nc5. KBN-KBN} d4 {[%emt 0:03:04]} 47. Nc5 {[%emt 0:00:00] Strongly threatening cxd4.} ({Much weaker is} 47. Bxa6 d3 48. Bxd3 Bxb7 $17) 47... dxc3 {[%emt 0:01:36]} 48. bxc3 {[%emt 0:00:00]} a5 {[%emt 0:00:47]} 49. Bc4+ {[%emt 0:00:00]} Kh7 {[%emt 0:01:24]} 50. Ne6 {[%emt 0:00:00]} (50. Nb3 $14) 50... Ne4+ $1 {[%emt 0:02:59] The position is equal.} 51. Kxf3 {[%emt 0:00:21] White wants to mate with Nf8+.} Nd2+ {[%emt 0:00:03]} 52. Ke2 {[%emt 0:00:06] Nf8+ would kill now.} Nxc4 {[%emt 0:00:06] KN-KN} 53. a4 {[%emt 0:00:06]} Nb6 {[%emt 0:02:45]} 54. Nc5 {[%emt 0:00:21]} Kg8 {[%emt 0:02:06]} 55. Kd3 {[%emt 0:00:25]} Kf7 {[%emt 0:00:21]} 56. c4 {[%emt 0:00:41]} Kf6 {[%emt 0:02:07]} 57. Ne4+ {[%emt 0:03:03]} Ke6 {[%emt 0:00:28]} 58. Nc5+ {[%emt 0:00:26]} Kf6 {[%emt 0:00:14]} 59. Ne4+ {[%emt 0:01:03]} Ke6 {[%emt 0:00:04] Weighted Error Value: White=0.08 (flawless) /Black=0.08 (flawless)} 1/2-1/2

[Event "Ceske Budejovice IM 2022"]
[Site "Ceske Budejovice"]
[Date "2022.07.05"]
[Round "5.1"]
[White "Lajbl, Jan"]
[Black "Gretarsson, Helgi Ass"]
[Result "0-1"]
[ECO "B07"]
[WhiteElo "2212"]
[BlackElo "2472"]
[Annotator "TA"]
[PlyCount "69"]
[EventDate "2022.07.01"]
[EventType "tourn"]
[EventCountry "CZE"]
[SourceTitle "playchess.com"]
[Source "ChessBase"]
[SourceQuality "1"]
[TimeControl "40/5400+30:1800+30"]

{[%evp 9,69,22,34,23,33,29,25,18,15,0,0,-41,-35,-33,-41,-49,20,12,14,-101,-103,-135,-129,-252,-231,-291,-162,-243,-241,-238,-205,-383,-411,-488,-491,-497,-479,-497,-490,-472,-434,-408,-401,-383,-282,-336,-331,-341,-335,-342,-334,-333,-333,-373,-372,-468,-390,-392,-246,-480,-481,-817]} 1. e4 {[%emt 0:00:20]} d6 {[%emt 0:00:05]} 2. d4 {[%emt 0:00:04]} Nf6 {[%emt 0:00:07]} 3. Nc3 {[%emt 0:00:03]} Nbd7 {[%emt 0:00:08]} 4. g4 {[%emt 0:01:15]} h6 {[%emt 0:04:05]} 5. h3 {[%emt 0:01:03]} e5 {[%emt 0:11:28]} 6. Nge2 {[%emt 0:00:20] B07: Pirc Defence: Miscellaneous Systems.} c6 {[%emt 0:08:45]} 7. a4 {[%emt 0:04:21]} Be7 {[%emt 0:06:42]} 8. Bg2 {[%emt 0:00:21] White has an edge.} Nf8 {[%emt 0:02:23]} 9. f4 {[%emt 0:10:07]} Ng6 {[%emt 0:08:35]} 10. O-O {[%emt 0:07:43]} h5 {[%emt 0:06:57]} 11. g5 {[%emt 0:16:20]} Nh7 {[%emt 0:00:18]} 12. Qe1 {[%emt 0:06:51] [#]} h4 $146 {[%emt 0:03:32]} ({Black should play} 12... exf4 $15 13. Nxf4 Nxf4 14. Bxf4 Nxg5) ({Predecessor:} 12... exf4 13. h4 f6 14. Nxf4 Nxf4 15. Bxf4 fxg5 16. hxg5 Nxg5 17. Qe3 Bg4 18. a5 O-O {0-1 (28) Touboulic,J (2244)-Seret,J (2378) Besancon 2006}) 13. f5 $11 {[%emt 0:05:08]} Ngf8 {[%emt 0:00:05]} 14. f6 {[%emt 0:02:06]} (14. dxe5 $11 {remains equal.} dxe5 15. Qxh4) 14... gxf6 $17 {[%emt 0:00:11] Black continues to play with concentration.} 15. Qxh4 {[%emt 0:00:20]} Rg8 {[%emt 0:09:03][%cal Rh7g5]} 16. Qh5 {[%emt 0:10:05]} (16. Qf2 $17 {was called for.}) 16... Nxg5 $19 {[%emt 0:00:40]} 17. h4 {[%emt 0:02:38]} Ngh7 {[%emt 0:08:22]} (17... Nge6 $142 18. Be3 Ng6) 18. Kh2 {[%emt 0:04:16]} (18. a5 {is a better defense.}) 18... Bg4 {[%emt 0:08:56]} 19. Qh6 {[%emt 0:00:07]} Qc7 {[%emt 0:04:16]} 20. dxe5 $2 {[%emt 0:02:43] [#]} (20. Qe3 {might work better.}) 20... fxe5 {[%emt 0:00:33]} 21. Ng3 {[%emt 0:01:41]} Rg6 {[%emt 0:00:26]} 22. Qe3 {[%emt 0:01:13]} Bxh4 {[%emt 0:00:07]} 23. Nf5 {[%emt 0:00:35]} Bg5 {[%emt 0:01:20]} 24. Qf2 {[%emt 0:00:38]} Bxf5 {[%emt 0:02:15]} 25. exf5 {[%emt 0:00:41]} Rh6+ {[%emt 0:00:25]} 26. Kg1 {[%emt 0:01:49]} Qb6 {[%emt 0:02:22]} 27. Ne4 {[%emt 0:00:21]} Qxf2+ {[%emt 0:00:13]} 28. Rxf2 {[%emt 0:00:06]} Bxc1 {[%emt 0:00:07]} 29. Rxc1 {[%emt 0:00:17]} O-O-O {[%emt 0:05:27]} 30. c4 {[%emt 0:00:24]} Nf6 {[%emt 0:00:39]} 31. Ng5 {[%emt 0:00:34]} Rh5 {[%emt 0:00:14]} ({Avoid the trap} 31... Rd7 $2 32. Rc3 $19) 32. Nf3 {[%emt 0:00:56]} Kc7 {[%emt 0:00:36]} 33. c5 {[%emt 0:00:19]} Rxf5 {[%emt 0:00:09] [#] ...Ng6 is the strong threat.} 34. Bh3 $2 {[%emt 0:00:41]} (34. Nxe5 Rxf2 35. cxd6+ Rxd6 36. Kxf2) 34... Rh5 {[%emt 0:00:05]} 35. Ng5 {Weighted Error Value: White=0.51/Black=0.21 (precise)} (35. Nd2 $142 Rxh3 36. Rxf6) 0-1

[Event "Ceske Budejovice IM 2022"]
[Site "Ceske Budejovice"]
[Date "2022.07.05"]
[Round "5.2"]
[White "Finek, Vaclav"]
[Black "Mirzoev, Azer"]
[Result "1/2-1/2"]
[ECO "D11"]
[WhiteElo "2393"]
[BlackElo "2424"]
[Annotator "TA"]
[PlyCount "119"]
[EventDate "2022.07.01"]
[EventType "tourn"]
[EventCountry "CZE"]
[SourceTitle "playchess.com"]
[Source "ChessBase"]
[SourceQuality "1"]
[TimeControl "40/5400+30:1800+30"]

{[%evp 13,119,14,5,12,14,6,18,-13,0,0,0,0,0,0,0,0,0,0,0,0,22,36,18,0,0,0,0,-7,-5,-10,-12,-23,-18,-52,-39,-45,-32,-40,-45,-56,-58,-62,-56,-42,-50,-66,-70,-64,-62,-70,-24,-14,-8,-8,-12,-20,0,0,0,0,0,-8,0,0,2,8,16,16,16,20,20,20,53,52,54,57,56,0,0,0,0,0,0,0,0,-56,-53,-53,-39,-56,-56,-51,-51,-66,0,0,0,0,0,0,0,0,0,0,0,0,0,0]} 1. d4 {[%emt 0:00:02]} d5 {[%emt 0:02:44]} 2. c4 {[%emt 0:00:05]} c6 {[%emt 0:00:03]} 3. Nf3 {[%emt 0:00:07]} Nf6 {[%emt 0:00:04]} 4. Qc2 {[%emt 0:00:10]} g6 {[%emt 0:00:09]} 5. Bf4 {[%emt 0:00:25]} Bg7 {[%emt 0:00:06]} 6. e3 {[%emt 0:00:16]} O-O {[%emt 0:00:04]} 7. Nc3 {[%emt 0:00:19]} Bg4 {[%emt 0:00:50]} 8. Ne5 {[%emt 0:14:30] D93: Grünfeld: 4 Nf3 Bg7 5 Bf4 0-0 6 e3.} Be6 {[%emt 0:00:50]} 9. Be2 {[%emt 0:02:23]} Nbd7 {[%emt 0:00:08] [#]} 10. Nf3 $146 {[%emt 0:06:31]} ({Predecessor:} 10. Nxd7 Qxd7 11. cxd5 Nxd5 12. Nxd5 cxd5 13. O-O Rfc8 {½-½ (13) Hansen,S (2574)-Berkes,F (2647) Denmark 2020}) 10... Nh5 {[%emt 0:09:43]} (10... dxc4 {is more complex.} 11. Ng5 Nd5 12. Nxe6 fxe6 13. Bg3 b5) 11. cxd5 {[%emt 0:05:19]} cxd5 {[%emt 0:04:22]} 12. Bg3 {[%emt 0:01:59]} Nxg3 {[%emt 0:00:44]} 13. hxg3 {[%emt 0:00:05]} Nf6 {[%emt 0:00:08]} 14. O-O {[%emt 0:03:09]} Qd6 {[%emt 0:01:24]} 15. Rac1 {[%emt 0:03:07]} Rfc8 {[%emt 0:00:33]} 16. Qb3 {[%emt 0:01:58]} Qb6 {[%emt 0:06:44]} 17. Qxb6 {[%emt 0:10:09]} axb6 {[%emt 0:00:05]} 18. Nd2 {[%emt 0:00:49] Against Ne4} Bd7 {[%emt 0:00:19]} 19. a3 {[%emt 0:01:29]} e6 {[%emt 0:00:09]} 20. Bd3 {[%emt 0:11:23]} Bf8 {[%emt 0:03:21]} 21. Rfd1 {[%emt 0:02:50]} Kg7 {[%emt 0:00:16]} 22. Kf1 {[%emt 0:00:56]} Ne8 {[%emt 0:00:35][%cal Bf6e8,Be8d6,Bd6c4][%mdl 32]} 23. Ne2 {[%emt 0:12:44]} Bc6 {[%emt 0:02:30]} 24. Rc2 {[%emt 0:03:19]} Nd6 {[%emt 0:00:15]} 25. Rdc1 {[%emt 0:00:51]} b5 {[%emt 0:01:52]} 26. Nb1 {[%emt 0:02:55]} Nc4 {[%emt 0:01:40]} 27. Nbc3 {[%emt 0:00:37]} h5 {[%emt 0:01:49]} 28. Nf4 {[%emt 0:04:04]} Bd7 {[%emt 0:02:50][%cal Oc4b2]} 29. Nfe2 {[%emt 0:03:30]} Be7 {[%emt 0:01:41]} 30. e4 {[%emt 0:01:20]} Bg5 {[%emt 0:06:59]} 31. Rd1 {[%emt 0:00:44]} Bc6 {[%emt 0:00:13]} (31... dxe4 $1 $15 32. Bxe4 Nd6) 32. exd5 $11 {[%emt 0:00:32]} exd5 {[%emt 0:00:09]} 33. Nf4 {[%emt 0:01:58]} Rd8 {[%emt 0:01:42]} 34. Be2 {[%emt 0:00:14]} h4 {[%emt 0:06:03]} 35. Nh3 $1 {[%emt 0:00:52] [#] Threatens to win with Bxc4. Pair of Knights!} Be7 {[%emt 0:00:06]} 36. gxh4 {[%emt 0:00:50]} Bxh4 {[%emt 0:00:06]} 37. Bf3 {[%emt 0:01:07]} Nb6 {[%emt 0:07:14]} 38. Nf4 {[%emt 0:00:53][%cal Bh3f4,Bf4d3,Bd3b4][%mdl 32]} Be7 {[%emt 0:00:51]} 39. Nd3 {[%emt 0:00:16]} Bf8 {[%emt 0:04:48]} 40. g3 {[%emt 0:00:44]} Na4 {[%emt 0:06:21]} 41. Na2 {[%emt 0:33:18]} Bd7 {[%emt 0:33:59]} 42. Nab4 {[%emt 0:00:00]} ({Wrong is} 42. Bxd5 $2 Bg4 43. f3 Bh3+ 44. Kf2 Rxd5 $19) 42... Bxb4 {[%emt 0:00:00]} 43. Nxb4 {[%emt 0:00:00]} Bf5 {[%emt 0:00:00]} 44. Re2 {[%emt 0:00:00]} Be4 {[%emt 0:00:00]} 45. Bxe4 {[%emt 0:00:00]} (45. Bg2 $14) 45... dxe4 {[%emt 0:00:00]} 46. d5 {[%emt 0:00:00]} f5 {[%emt 0:00:00]} 47. Rc2 {[%emt 0:00:00]} Rd7 {[%emt 0:00:00] Against Rc7} 48. Rdc1 {[%emt 0:00:00]} Kf6 {[%emt 0:00:00]} 49. Rc7 {[%emt 0:00:00]} (49. Ke2 $11) 49... Rxc7 $15 {[%emt 0:00:00]} 50. Rxc7 {[%emt 0:00:00]} Nxb2 {[%emt 0:00:00]} 51. Rxb7 {[%emt 0:00:00][%mdl 4096] Endgame KRN-KRN} Nc4 {[%emt 0:00:00]} ({Don't do} 51... Rxa3 52. d6 Ra1+ 53. Ke2 $16) 52. Rxb5 {[%emt 0:00:00]} Rxa3 {[%emt 0:00:00]} 53. Rc5 {[%emt 0:00:00]} Nd6 {[%emt 0:00:00]} (53... Ne5 $15) 54. Rc6 $11 {[%emt 0:00:00] The position is equal.} Ke5 {[%emt 0:00:00]} 55. Rc7 $1 {[%emt 0:00:00] [#] Re7+ is the strong threat.} Rb3 {[%emt 0:00:00]} 56. Nc6+ {[%emt 0:00:00]} Kxd5 {[%emt 0:00:00]} 57. Ne7+ {[%emt 0:00:00]} Kd4 {[%emt 0:00:00]} 58. Nc6+ {[%emt 0:00:00]} Kd5 {[%emt 0:00:00]} 59. Ne7+ {[%emt 0:00:00]} Kd4 {[%emt 0:00:00]} 60. Nc6+ {[%emt 0:00:00] Weighted Error Value: White=0.07 (flawless) /Black=0.05 (flawless)} 1/2-1/2

[Event "Ceske Budejovice IM 2022"]
[Site "Ceske Budejovice"]
[Date "2022.07.05"]
[Round "5.3"]
[White "Civin, Tomas"]
[Black "Nagy, Ladislav"]
[Result "1/2-1/2"]
[ECO "E04"]
[WhiteElo "2419"]
[BlackElo "2209"]
[Annotator "TA"]
[PlyCount "84"]
[EventDate "2022.07.01"]
[EventType "tourn"]
[EventCountry "CZE"]
[SourceTitle "playchess.com"]
[Source "ChessBase"]
[SourceQuality "1"]
[TimeControl "40/5400+30:1800+30"]

{[%evp 13,84,31,28,20,0,0,6,0,10,0,-11,0,0,-2,0,-14,0,0,0,-12,0,0,0,0,0,-25,-20,-40,0,0,9,-18,-17,-10,-14,-12,-17,-31,-3,-6,-10,-22,-22,-10,-17,-28,-18,-12,-18,-27,-20,-32,-30,-22,-16,-17,-19,-29,-26,-24,-20,-21,-45,-23,-16,-29,-19,-44,0,0,0,-8,0]} 1. d4 {[%emt 0:00:03]} Nf6 {[%emt 0:00:11]} 2. c4 {[%emt 0:00:08]} e6 {[%emt 0:00:14]} 3. g3 {[%emt 0:00:10]} d5 {[%emt 0:00:41]} 4. Bg2 {[%emt 0:00:26]} dxc4 {[%emt 0:03:16]} 5. Nf3 {[%emt 0:00:24]} Nc6 {[%emt 0:00:36]} 6. Qa4 {[%emt 0:00:36]} Bb4+ {[%emt 0:01:29]} 7. Bd2 {[%emt 0:00:09]} Nd5 {[%emt 0:00:41]} 8. Qb5 {[%emt 0:00:30] E04: Open Catalan: 5 Nf3.} Bxd2+ {[%emt 0:01:57]} 9. Nbxd2 {[%emt 0:00:50]} c3 {[%emt 0:01:50]} 10. bxc3 {[%emt 0:00:07]} Nxc3 {[%emt 0:00:22]} 11. Qd3 {[%emt 0:00:06]} Nd5 {[%emt 0:02:04]} 12. O-O {[%emt 0:00:10]} O-O {[%emt 0:04:00]} 13. Rfc1 {[%emt 0:01:03]} Nce7 {[%emt 0:07:07]} 14. Rab1 {[%emt 0:07:32]} a5 {[%emt 0:23:47]} 15. a3 {[%emt 0:08:21] [#]} Ra7 $146 {[%emt 0:02:48]} ({Predecessor:} 15... c6 16. Ne5 Ra7 17. e4 Nf6 18. Qc3 Nd7 19. Nec4 b5 20. Ne3 Ba6 21. Nb3 a4 {0-1 (57) Barp,A (2384)-Lamaze,S (2369) Chess.com INT 2022}) 16. e4 {[%emt 0:01:35]} Nf6 {[%emt 0:01:00]} 17. Qc3 {[%emt 0:01:42]} ({Reject} 17. e5 Nfd5 $15) 17... b6 {[%emt 0:03:06]} 18. Ne5 {[%emt 0:06:35]} Nd7 {[%emt 0:08:40]} 19. Nd3 {[%emt 0:02:53]} Ba6 {[%emt 0:02:38][%cal Oc7c5]} 20. Nc4 {[%emt 0:02:59]} Bb7 {[%emt 0:03:36]} 21. Ne3 {[%emt 0:06:02]} Ba8 {[%emt 0:01:16]} 22. Rb2 {[%emt 0:03:23]} Nf6 {[%emt 0:04:12]} 23. f3 {[%emt 0:04:55]} Nc6 {[%emt 0:02:01]} 24. Nc2 {[%emt 0:13:34]} Qe7 {[%emt 0:01:43]} 25. Nf2 {[%emt 0:03:01]} Rd8 {[%emt 0:01:56]} 26. Rd1 {[%emt 0:00:11]} Qe8 {[%emt 0:02:13]} 27. Bf1 {[%emt 0:01:39]} Ne7 {[%emt 0:01:26]} 28. Ne3 {[%emt 0:02:48]} Bc6 {[%emt 0:01:38]} 29. Rc1 {[%emt 0:04:27]} Raa8 {[%emt 0:02:55]} 30. Nc4 {[%emt 0:03:10]} Nd7 {[%emt 0:03:22]} 31. Nd3 {[%emt 0:06:05]} Rac8 {[%emt 0:01:13]} 32. Nf4 {[%emt 0:03:46]} Ba8 {[%emt 0:01:58]} 33. Qe3 {[%emt 0:04:55]} Ng6 {[%emt 0:02:35]} 34. Nd3 {[%emt 0:03:18]} Nb8 {[%emt 0:02:07]} 35. Nde5 {[%emt 0:07:14]} Nc6 {[%emt 0:01:31]} 36. Nxc6 {[%emt 0:00:23]} Bxc6 {[%emt 0:00:08]} 37. h4 {[%emt 0:00:15]} h6 {[%emt 0:02:00]} 38. h5 {[%emt 0:00:28]} Nf8 {[%emt 0:03:20]} 39. Ne5 {[%emt 0:00:10]} Bb7 {[%emt 0:01:24]} 40. Bb5 {[%emt 0:01:34]} Qe7 {[%emt 0:00:56][%cal Oc7c6]} (40... c6 $5 {[%cal Rc6b5]} 41. Be2 b5 $15) 41. Bc6 {[%emt 0:09:21]} Ba6 {[%emt 0:01:43]} 42. Ba4 {[%emt 0:06:17]} Bb7 {[%emt 0:03:00] An even fight not without its subleties.  Weighted Error Value: White=0.06 (flawless) /Black=0.05 (flawless)} 1/2-1/2